{"text_format":"1","workbook":"xlsx","n_sheets":3,"sheets":["Foglio1","Foglio2","Foglio3"],"not_rendered":{"charts":0,"images":0,"macros":0,"external_links":0,"defined_names":0,"comments":0,"pivot_tables":0},"unopened":[],"bounds":{"document_bytes":16777216,"sheet_cells":100000,"rows_first":2000,"rows_last":500,"rows_between":2000,"halvings":0,"cell_chars":16384,"cell_head_chars":4096},"cells_cut":0,"cells_raw":0,"read":"whole","date_system":"1900"}

{"sheet":"Foglio1","index":0,"n_rows":69,"n_cols":10,"rows_kept":69,"cut":false,"hidden":false,"merged":[[60,0,60,9],[38,4,38,5],[43,2,43,6],[0,0,0,9],[32,4,32,5],[56,0,56,9]]}
["CONRIBUTO DI COSTRUZIONE"]
[]
["Intervento edilizio ricadente in area DI P.R.G. :(1)",null,null,null,null,"RICHIEDENTE:"]
[null,null,null,null,null,"PIANO CASA (2):",null,"X","SI"]
[null,null,null,null,null,null,null,null,"NO"]
["URBANIZZAZIONE CIVILE PER NUOVA COSTRUZIONE"]
[]
["KP",0,"x       Mc",0," =",{"$f":"+D8*B8","v":0},"PRIMARIA"]
["KS",0,"x       Mc",{"$f":"D8","v":0}," =",{"$f":"+D9*B9","v":0},"SECONDARIA"]
[null,null,null,null,null,{"$f":"SUM(F8:F9)","v":0},"(A) TOTALE"]
[]
["URBANIZZAZIONE CIVILE PER RISTRUTTURAZIONE"]
[]
["KP",0,"x       Mc",0," =",{"$f":"+D14*B14","v":0},"PRIMARIA"]
["KS",0,"x       Mc",{"$f":"D14","v":0}," =",{"$f":"+D15*B15","v":0},"SECONDARIA"]
[null,null,null,null,null,{"$f":"SUM(F14:F15)","v":0},"(B) TOTALE"]
["URBANIZZAZIONE INDUSTRIALE"]
[]
[" (3)  K1 *(SUP. utile al piano) ",null,null,0,"x","Mq",0,"=",{"$f":"+G19*D19","v":0}]
[" (4)  K2 *(SUP. insediamento) ",null,null,0,"x","Mq",0,"=",{"$f":"+G20*D20","v":0}]
[" (5)  KS *(SUP. insediamento) ",null,null,0,"x","Mq",0,"=",{"$f":"+G21*D21","v":0}]
[" (6)  KC*(Volume direzionale) ",null,null,0,"x","Mc",0,"=",{"$f":"+G22*D22","v":0}]
[]
[null,null,null,null,null,null,"TOTALE (C)",null,{"$f":"SUM(I19:I23)","v":0}]
[]
[]
["COSTO DI COSTRUZIONE PER NUOVA COSTRUZIONE O RISTRUTTURAZIONE"]
[]
["SCHEDA PARAMETRICA  ANTE OPERAM ",null,null,null,null,null,null,null,0]
[]
["Parametri","R1",0," +     R2",0," +       R3 ",0,"=",{"$f":"+(C31+E31+G31)/100","v":0}]
[]
[{"$f":"+I29","v":0},"x",{"$f":"I31","v":0}," =",{"$f":"+C33*A33","v":0},null," totale (C1)"]
[]
["SCHEDA PARAMETRICA  POST OPERAM ",null,null,null,null,null,null,null,0]
[]
["Parametri","R1",0," ",0," +       R3 ",0,"=",{"$f":"+(C37+E37+G37)/100","v":0}]
[]
[{"$f":"+I35","v":0},"x",{"$f":"I37","v":0}," =",{"$f":"+C39*A39","v":0},null," totale (C2)"]
[]
["Totale C ="," (C1)-(C2)",null,{"$f":"E39","v":0},"-",{"$f":"E33","v":0}," =",null,{"$f":"D41-F41","v":0},"TOT. (D)"]
[]
[]
[null,null,"CONTRIBUTO STRAORDINARIO"]
[]
[]
["DELIBERA C.C. N. 47 DEL 30/10/2009 SOTTOTETTI"]
[null,null,null,"PARCHEGGI",null,0," x Mc",0," =",{"$f":"+H48*F48","v":0}]
[null,null,null,"VERDE",null,0," x Mc",0," =",{"$f":"+H49*F49","v":0}]
[]
[]
[]
["ART.3 Comma 7 L.r.n n° 21/2009 (Piano Casa)"]
[null,null,"Importo degli Oneri (A+B+C+D)",null,null,{"$f":"IF(H4=\"\",\"\",F10+F16+I41)","v":0}," x 50%","=",{"$f":"+F54/100*50","v":0}]
[]
[" (1) Destinazione Urbanistica; "]
["(2) D.P.R. 380/2001 aRT.22 2°co e 3°co - Legge regionale 21/2009 art.3,3bis, 3ter, 4 e 5 (art.3ter e art.4 solo per sup. fino a mq500) L.r. 13/2009 - METTERE LA SPUNTA SU \"SI\" OVVERO \"NO\""]
[" (3) Contributo opere di urbanizzazione primaria per mq di superficie utile coperta"]
[" (4) Contributo opere di urbanizzazione primaria per superficie di insediamento"]
[" (5) Contributo opere di urbanizzazione secondaria per superficie di insediamento"]
[" (6) Contributo opere di urbanizzazione  per mc di volume di costruzione direzionale, residenze di servizio o assimilabili"]
[]
["CONTRIBUTO DI COSTRUZIONE DA VERSARE",null,null,null,null,{"$f":"F10+F16+I24+I41","v":0},"CCP n°5414447"]
[]
["CONTRIBUTO STRAORDINARIO DA VERSARE",null,null,null,null,{"$f":"I54+J48+J49","v":0},"CCP n°5414447"]
[]
["DIRITTI DI ISTRUTTORIA ",null,null,null,null,200,"(€200,00 D.I.A. - €250,00 PERMESSO)"]
[null,null,null,null,null,null,"CCP n°68286871"]
["DIRITTI DI SEGRETERIA  (min.€150,00 max €516,46)",null,null,null,null,{"$f":"IF(F63*0.05<=150,150,IF(F63*0.05>516.46,516.46,F63*0.05))","v":150},"(min € 150,00 max € 516,49)"]

{"sheet":"Foglio2","index":1,"n_rows":0,"n_cols":0,"rows_kept":0,"cut":false,"hidden":false,"merged":[]}

{"sheet":"Foglio3","index":2,"n_rows":0,"n_cols":0,"rows_kept":0,"cut":false,"hidden":false,"merged":[]}